Cogmind - Beta 9.4 @@@ ROGUE MODE // 2020.03.07 @ 04:12:45 Player: Frank Result: Destroyed by S-10 Pest with Light Assault Rifle Performance ------------- Evolutions (1) 500 Regions Visited (2) 400 Robots Destroyed (22) 110 Value Destroyed (525) 525 Prototype IDs (2) 40 Alien Tech Used (0) 0 Bonus (0) 0 TOTAL SCORE: 1575 Bonus ------- None Cogmind --------- Core Integrity 0/400 Matter 270/300 Energy 53/100 System Corruption 0% Temperature Cool (0) Movement Treading (160) Location -9/Materials Parts ------- > --- POWER (2) -------- (None) > --- PROPULSION (2) --- Improved Treads > --- UTILITY (3) ------ Weight Redist. System > --- WEAPON (2) ------- Beam Rifle > --- INVENTORY (4) ---- (None) Peak State ------------ > --- POWER ------------ Light Ion Engine Improved Ion Engine > --- PROPULSION ------- Aluminum Leg Aluminum Leg > --- UTILITY ---------- Weight Redist. System ECM Suite Medium Armor Plating > --- WEAPON ----------- Light Assault Rifle Light Assault Rifle > --- INVENTORY -------- Light Treads [Rating: 12] Favorites ----------- Power Ion Engine Engine Ion Engine Propulsion Aluminum Leg Treads Light Treads Leg Aluminum Leg Utility ECM Suite Device ECM Suite Storage Small Storage Unit Protection Medium Armor Plating Weapon Assault Rifle Energy Gun EM Pulse Gun Energy Cannon Beam Cannon Ballistic Gun Assault Rifle Launcher Grenade Launcher Build | -11 -10 -9 ------- Run | Scr Mat Mat Slots Evolved 2 | . . 2 Power 1 | . . 1 Propulsion . | . . . Utility 1 | . . 1 Weapon . | . . . Parts Attached 28 | 4 3 21 Power 4 | 1 . 3 Engine 4 | 1 . 3 Core . | . . . Reactor . | . . . Propulsion 9 | 1 1 7 Treads 4 | . . 4 Leg 5 | 1 1 3 Wheel . | . . . Hover . | . . . Flight . | . . . Utility 8 | 1 1 6 Device 5 | . 1 4 Storage 1 | 1 . . Processor . | . . . Hackware . | . . . Protection 2 | . . 2 Artifact . | . . . Weapon 7 | 1 1 5 Energy Gun 2 | . . 2 Energy Cannon 1 | . . 1 Ballistic Gun 3 | 1 . 2 Ballistic Cannon . | . . . Launcher 1 | . 1 . Special Weapon . | . . . Impact Weapon . | . . . Slashing Weapon . | . . . Piercing Weapon . | . . . Special Melee Weapon . | . . . Unidentified Prototypes . | . . . Parts Lost 16 | . . 16 Power 4 | . . 4 Propulsion 4 | . . 4 Utility 2 | . . 2 Weapon 6 | . . 6 Highest Loss Streak 8 | . . 8 Average Slot Usage (%) 87 | . 96 82 Engine 16 | . 14 17 Treads 5 | . . 8 Leg 16 | . 27 10 Device 18 | . 12 20 Storage 7 | . 14 4 Protection 2 | . . 3 Ballistic Gun 12 | . 14 12 Launcher 7 | . 13 4 Naked Turns 11 | . . 11 Heaviest Build 20 | 11 15 20 Greatest Support 46 | 10 20 46 Greatest Overweight (x) 4 | 1 1 4 Average Overweight (x) . | . . . Largest Inventory Capacity 6 | 6 6 6 Average Capacity 5 | 5 6 4 Most Carried 5 | 4 5 4 Average Carried 2 | 2 3 1 Final Capacity 6 | 6 6 4 Final Carried 4 | 4 3 . Class Distribution -------------------- 70% | Mutant 29% | Scavenger-Mutant Dominant Class ---------------- Mutant | -10/Materials Mutant | -9/Materials Resources | -11 -10 -9 ----------- Run | Scr Mat Mat Matter Collected 517 | 141 30 346 Remotely . | . . . Salvage Created 533 | . 95 438 Parts 49 | . 8 41 Haulers Intercepted . | . . . Recyclers Shooed 3 | . 1 2 Parts Field Recycled . | . . . Retrieved Matter . | . . . Parts Self-Destructed . | . . . Prevented . | . . . Kills | -11 -10 -9 ------- Run | Scr Mat Mat Combat Hostiles Destroyed 15 | . 3 12 Melee 1 | . . 1 Guns 5 | . . 5 Cannons 3 | . . 3 AOE 6 | . 3 3 Classes Destroyed 6 | . 2 4 Builder 3 | . 2 1 Tunneler 1 | . . 1 Watcher 3 | . . 3 Swarmer 5 | . . 5 Grunt 8 | . 3 5 Sentry 2 | . . 2 Best Kill Streak 7 | . 5 7 Combat Bots Only 7 | . 3 7 Max Kills in Single Turn 3 | . 3 2 Gunslinging . | . . . Exploded 3 | . 3 2 Melee 1 | . . 1 Uniques/NPCs Destroyed . | . . . Combat | -11 -10 -9 -------- Run | Scr Mat Mat Damage Taken 2181 | . 122 2059 Core 428 | . 20 408 Absorbed by Shields . | . . . Core Remaining (%) 96 | 100 92 . Volleys Fired 63 | . 4 59 Largest 2 | . 2 2 Hottest 60 | . 50 60 Shots Fired 96 | . 7 89 Gun 80 | . 4 76 Cannon 7 | . . 7 Launcher 9 | . 3 6 Special . | . . . Kinetic 72 | . 4 68 Thermal 9 | . . 9 Explosive 9 | . 3 6 Electromagnetic 6 | . . 6 Robot Hit Streak 8 | . 3 8 Robot Miss Streak 2 | . 1 2 Penetration Max . | . . . Secondary Targets 1 | . . 1 Max Gunslinging Chain 1 | . . 1 Shots Hit Robots 72 | . 4 68 Core Hits 48 | . 6 42 Critical Hits . | . . . Critical Kills . | . . . Critical Parts Destroyed . | . . . Melee Attacks . | . . . Impact . | . . . Slashing . | . . . Piercing . | . . . Sneak Attacks . | . . . Combat Hostiles . | . . . Follow-up Attacks . | . . . Damage Inflicted 1239 | . 213 1026 Guns 562 | . 38 524 Cannons 105 | . . 105 Explosions 532 | . 167 365 Melee . | . . . Ramming 40 | . 8 32 Kinetic 486 | . 38 448 Thermal 133 | . . 133 Explosive 532 | . 167 365 Electromagnetic 48 | . . 48 Impact . | . . . Slashing . | . . . Piercing . | . . . Highest Corruption . | . . . Average Corruption . | . . . Corruption Purged . | . . . Overload Shots . | . . . Overflow Damage 7 | . . 7 Projectiles . | . . . Explosions 7 | . . 7 Melee . | . . . Knockbacks . | . . . Impact . | . . . Kinetic . | . . . Secondary . | . . . Self-Inflicted Damage 103 | . 44 59 Shots 4 | . 1 3 Rammed 14 | . 1 13 Targets Rammed 18 | . 1 17 Kicked 4 | . . 4 Crushed . | . . . Highest Temperature 143 | . 2 143 Average Temperature 61 | . 2 62 Received Heat Transfer 393 | . 12 381 Siege Activations . | . . . Robots Corrupted . | . . . Combat Hostiles . | . . . Parts Fried . | . . . Impact Corruptions . | . . . Robots Melted . | . . . Combat Hostiles . | . . . Parts Melted . | . . . Heat Transferred 296 | . . 296 Parts Sabotaged . | . . . Parts Stolen . | . . . Parts Stripped . | . . . Power Chain Reactions . | . . . Missiles Intercepted . | . . . Alert | -11 -10 -9 ------- Run | Scr Mat Mat Peak Influence 392 | . 95 392 Average Influence 128 | . 8 199 Maximum Alert Level 1 | . . 1 Low Security (%) 57 | 100 100 32 Level 1 42 | . . 67 Level 2 . | . . . Level 3 . | . . . Level 4 . | . . . Level 5 . | . . . High Security . | . . . Max Security . | . . . Squads Dispatched 5 | . 2 3 Investigation 3 | . 1 2 Extermination . | . . . Reinforcement 2 | . 1 1 Assault . | . . . Garrison . | . . . Intercept . | . . . Construction Impeded . | . . . Haulers Reinforced . | . . . Stealth | -11 -10 -9 --------- Run | Scr Mat Mat Distress Signals . | . . . Communications Jammed . | . . . Distress Signals . | . . . Times Spotted 46 | . 8 38 Peak Tracking Total 6 | . 4 6 Tactical Retreats 9 | . 1 8 Traps | -11 -10 -9 ------- Run | Scr Mat Mat Traps Triggered 1 | . 1 . Indirectly . | . . . Trap Hack Attempts . | . . . Triggered . | . . . Disarmed . | . . . Reprogrammed . | . . . Reused . | . . . Traps Extracted . | . . . Installed . | . . . Triggered . | . . . Machines | -11 -10 -9 ---------- Run | Scr Mat Mat Machines Disabled 3 | . 1 2 Max in Single Turn 1 | . 1 1 Machines Sabotaged . | . . . Garrisons Compromised . | . . . Overloaded Fab Kills . | . . . Fab Network Shutdowns . | . . . Hacking | -11 -10 -9 --------- Run | Scr Mat Mat Machines Accessed 5 | . . 5 Terminals 4 | . . 4 Fabricators . | . . . Repair Stations . | . . . Recycling Units . | . . . Scanalyzers 1 | . . 1 Garrison Access . | . . . Total Hacks 24 | . . 24 Successful 14 | . . 14 Failed 9 | . . 9 Catastrophic 1 | . . 1 Database Lockouts 1 | . . 1 Manual . | . . . Terminals 22 | . . 22 Fabricators . | . . . Repair Stations . | . . . Recycling Units . | . . . Scanalyzers 2 | . . 2 Garrison Access . | . . . Terminal Hacks 12 | . . 12 Record 6 | . . 6 Prototype ID Bank 1 | . . 1 Alert Level 1 | . . 1 Reinforcement Status 1 | . . 1 Recall Investigation 1 | . . 1 Hauler Manifests 1 | . . 1 Registered Prototypes 1 | . . 1 Fabricator Hacks . | . . . Repair Station Hacks . | . . . Recycling Unit Hacks . | . . . Scanalyzer 2 | . . 2 Insert Component 1 | . . 1 Analyze 1 | . . 1 Garrison Access Hacks . | . . . Unauthorized Hacks . | . . . Terminals . | . . . Fabricators . | . . . Repair Stations . | . . . Recycling Units . | . . . Scanalyzers . | . . . Garrison Access . | . . . Data Cores Recovered . | . . . Used . | . . . Hacking Detections 5 | . . 5 Full Trace Events 2 | . . 2 Feedback Events . | . . . Feedback Blocked . | . . . Robot Schematics Acquired . | . . . Robots Built . | . . . Matter . | . . . Time . | . . . Total Robot Build Rating . | . . . Part Schematics Acquired 1 | . . 1 Parts Built . | . . . Matter . | . . . Time . | . . . Total Part Build Rating . | . . . Parts Repaired . | . . . Time . | . . . Parts Recycled . | . . . Recycled Matter . | . . . Retrieved Matter . | . . . Retrieved Components . | . . . Parts Scanalyzed 1 | . . 1 Part Schematics Acquired 1 | . . 1 Parts Damaged . | . . . Bothacking | -11 -10 -9 ------------ Run | Scr Mat Mat Used RIF Installer . | . . . Robots Hacked . | . . . Non-combat . | . . . Combat . | . . . Robot Hacks Applied . | . . . Relay Couplers Released . | . . . Robots Rewired . | . . . Allies Hacked . | . . . Hacks Repelled . | . . . Allies | -11 -10 -9 -------- Run | Scr Mat Mat Total Allies . | . . . Largest Group . | . . . Highest-Rated Group . | . . . Highest-Rated Ally . | . . . Total Orders . | . . . Ally Attacks . | . . . Total Damage . | . . . Kills . | . . . Allies Corrupted . | . . . Allies Melted . | . . . Intel | -11 -10 -9 ------- Run | Scr Mat Mat Robot Analysis Total . | . . . Derelict Logs Recovered . | . . . Drone Launches . | . . . Drone Recoveries . | . . . Exploration | -11 -10 -9 ------------- Run | Scr Mat Mat Turns Passed 984 | 63 301 620 Spaces Moved 444 | 40 83 321 Core 60 | 7 . 53 Treads 83 | . . 83 Legs 301 | 33 83 185 Wheels . | . . . Hover . | . . . Flight . | . . . Fastest Speed 50 | 50 120 50 Average Speed 125 | 132 123 125 Slowest Speed 250 | 150 150 250 Overloaded Moves . | . . . Propulsion Burnouts . | . . . Robots Hopped . | . . . Cave-ins Triggered . | . . . Exploration Rate (%) 21 | 3 24 38 Regions Visited 2 Branch Regions . Pre-discovered Areas . | . . . Known Exits Taken . | . . . Unknown Exits Taken 2 | 1 1 . Scrap Searched . | . . . Spaces Dug . | . . . Terrain Destroyed 50 | . 10 40 Melee . | . . . Projectile . | . . . AOE 50 | . 10 40 Actions | -11 -10 -9 --------- Run | Scr Mat Mat Total 782 | 50 274 458 Wait 195 | . 180 15 Move 442 | 39 82 321 Hop . | . . . Pick Up 27 | 7 3 17 Fast Attach 1 | 1 . . Attach 24 | 3 3 18 Detach . | . . . Swap 3 | . . 3 Drop 9 | . 1 8 Fire 63 | . 4 59 Melee . | . . . Ram 4 | . . 4 Kick 10 | . 1 9 Crush 4 | . . 4 Escape Stasis . | . . . Rewire . | . . . Trap . | . . . Miscellaneous . | . . . Route ------- -11/Scrapyard -10/Materials -9/Materials History --------- Turn | Location | Event 15 | -11/Scrapyard | Discovered new exit (range 16) 64 | -11/Scrapyard | Entered Materials 302 | -10/Materials | Build established: Mutant 351 | -10/Materials | Discovered new exit (range 12) 365 | -10/Materials | Entered another Materials area 365 | -9/Materials | Evolved 2 slots: Power x1, Utility x1 546 | -9/Materials | Central database locked down 665 | -9/Materials | Lost 8 parts (2p2n4w) 680 | -9/Materials | Destroyed 7 combat bots 911 | -9/Materials | Core integrity fell below 50% 932 | -9/Materials | Core integrity fell below 20% 945 | -9/Materials | Lost 4 parts (1p2n1w) 985 | -9/Materials | Destroyed by S-10 Pest with Light Assault Rifle Last Messages --------------- 00912_ R-06 Scavenger collects Lgt. Ion Engine. 00914_ Lgt. Treads destroyed. 00914_ Lgt. Ion Engine destroyed. 00922_ Acquired Hvy. Armor Plating. 00923_ Dropped Weight Redist. System. 00924_ Dropped ECM Suite. 00925_ Acquired Weight Redist. System. 00926_ Dropped Heat Sink. 00938_ Slammed into S-10 Pest. 00940_ S-10 Pest destroyed. 00942_ K-01 Serf collects debris. 00942_ Slammed into K-01 Serf. 00943_ Destabilizing: Short circuit. 00943_ Broken Weight Redist. System permanently disabled. 00943_ R-06 Scavenger collects ECM Suite. 00947_ Broken Weight Redist. System destroyed. 00961_ Hvy. Armor Plating destroyed. 00971_ Acquired Beam Rifle. 00974_ Acquired Imp. Treads. 00979_ Acquired Weight Redist. System. Map ----- +----------------------------------------------------+ | #########???????????????????????????? | | "% % #???????????????????????????? | | ##+####### #####???????????????????????? | | # " [= =## "T" ????????????????????? | | # !!"""=## ! ####???????????????????? | | #=="""""## = #??????????????????????? | | #! """""#" ##### #??????????????????????? | | # !"""""#T #????????????????????????????? | | #%%=""" #" #????????????????????????????? | | #=** ## #????????????????????????????? | | # ## """" #????????????????????????????? | | # ! ## """" #????????????????????????????? | | ########## """" #????????????????????????????? | | #????????????????????????????? | | #????????????????????????????? | | #????????????????????????????? | | ##### ########## +????????????????????????????? | | ????# #????????# #????????????????????????????? | | ????# #????????# #???###########??????????????? | | ????# #????????# #???# """ """ #??????????????? | | ????# #????????# #???# """ """ #??????????????? | | ????# #????????# #???# """ """ #??????????????? | | ????# #????????# #???# #??????????????? | | ????# #????????# #???# #??????????????? | | ##### #????????# #???# #??????????????? | | # #????????# #???#@ #??????????????? | | # #???????## #???# s s #??####????????? | | # #???????# ##########/### #????????? | | # #???????# #????????? | | # #???????# T #????????? | | # ######### #????????? | | # ###+########## #????????? | | # ##########????# #??????# ##????????? | | %/ ############### #??????? #?????????? | | ##### # / #???????? #?????????? | | ##### # # #????????? ????????? | | # # #??????????###???????? | | # # #????????????????????? | | ##### / ###/####????????????????????? | | ????# # ### ##??????????????????????? | | ??### #########+##### #??????????????????????? | | ? #??????????????????????? | | ? %= #??????????????????????? | | ? ### ###### #### [ #??????????????????????? | | #???#+#????# ! #####+#####????????????????????? | | ???????????#!!!!!!# #????????????????????? | | ???????????#!!!!!!# #????????????????????? | | ???????????######## """ """ #????????????????????? | | ??????????????????# """ """ #????????????????????? | | ??????????????????# """ """ #????????????????????? | +----------------------------------------------------+ Best States ------------- Heat Dissipation 38 Energy Generation 17 Energy Capacity 400 Matter Stores 300 Matter Capacity 300 Sight Range 16 Terrain Scan Density 10 ECM Strength 1 Additional Mass Support 6 Armor Coverage 600 Evasion (%) 50 Recoil Reduction 2 Item Schematics ----------------- EM Pulse Gun | -9/Materials | Scanalyzed Robot Schematics ------------------ None Fabricated ------------ Nothing Alien Tech Used ----------------- None Achievements -------------- None Challenges ------------ None Game ------ Seed ChipDeliveryExpander Manual? 0 Play Time 00:12:13 Cumulative 16.5 hours Start 2020.03.07 @ 04:02:34 End 2020.03.07 @ 04:12:45 Sessions 1 Manual Loads 0 Difficulty Rogue Special Mode None Game No. 39 Rogue 38 Adventurer 1 Explorer 0 Win Type - Total 0 Types 0/0/0/0/0/0/0 Lore% 16 Gallery% 27 Achievement% 16 Wizard Run 0 Options --------- ASCII 0 Keyboard 0 Movement Mouse Keybinds 0 Fullscreen 1 Font 36/Smallcaps Map View 76x50 Tactical HUD 1 Map Filters NONE Filters NONE Steam 1 RUN: 286f81ed-8b5d-49a3-8b5d-d9ebabc452af